[Event "VII Copa Marcel Duchamp 2024"]
[Site "Montevideo"]
[Date "2024.02.08"]
[Round "7.1"]
[White "Meier, Georg"]
[Black "Tristan, Leonardo"]
[Result "1/2-1/2"]
[ECO "E05"]
[WhiteElo "2620"]
[BlackElo "2515"]
[Annotator "TA"]
[PlyCount "34"]
[EventDate "2024.02.05"]
[EventType "swiss"]
[EventCountry "URU"]
[SourceTitle "playchess.com"]
[Source "ChessBase"]
[SourceQuality "1"]
[TimeControl "5400+30"]

{[%evp 29,34,1,0,0,0,0,0]} 1. Nf3 {[%emt 0:00:04]} d5 {[%emt 0:02:54]} 2. g3 {[%emt 0:00:08]} Nf6 {[%emt 0:00:11]} 3. Bg2 {[%emt 0:00:05]} e6 {[%emt 0:00:12]} 4. O-O {[%emt 0:00:07]} Be7 {[%emt 0:00:07]} 5. c4 {[%emt 0:00:15]} O-O {[%emt 0:00:14]} 6. d4 {[%emt 0:00:06]} dxc4 {[%emt 0:00:06]} 7. Qc2 {[%emt 0:00:06]} a6 {[%emt 0:00:12]} 8. a4 {[%emt 0:00:17]} Bd7 {[%emt 0:00:16]} 9. Ne5 {[%emt 0:00:28]} Bc6 {[%emt 0:01:51]} 10. Nxc6 {[%emt 0:00:09]} Nxc6 {[%emt 0:00:05]} 11. e3 {[%emt 0:00:10]} Na5 {[%emt 0:01:26]} 12. Nd2 {[%emt 0:00:09]} c5 {[%emt 0:00:09]} 13. dxc5 {[%emt 0:01:06]} Rc8 {[%emt 0:41:36]} 14. b4 {[%emt 0:00:58]} cxb3 {[%emt 0:00:16]} 15. Nxb3 {[%emt 0:00:07]} Nxb3 {[%emt 0:09:40] The position is equal.} 16. Qxb3 {[%emt 0:02:31]} Nd7 {[%emt 0:00:44]} 17. Ba3 {[%emt 0:50:08]} Nxc5 {[%emt 0:02:50] An uneventful encounter.   OK:         	---       	Black=1      Best:        	---       	Black=1} 1/2-1/2

[Event "VII Copa Marcel Duchamp 2024"]
[Site "Montevideo"]
[Date "2024.02.08"]
[Round "7.2"]
[White "Acosta, Pablo Ismael"]
[Black "Carbone, Diego"]
[Result "1-0"]
[ECO "C68"]
[WhiteElo "2479"]
[BlackElo "2275"]
[Annotator "TA"]
[PlyCount "107"]
[EventDate "2024.02.05"]
[EventType "swiss"]
[EventCountry "URU"]
[SourceTitle "playchess.com"]
[Source "ChessBase"]
[SourceQuality "1"]
[TimeControl "5400+30"]

{[%evp 15,106,0,0,0,0,0,6,0,0,0,0,0,0,0,0,0,0,0,0,-6,0,0,6,0,0,0,0,0,0,0,0,0,25,20,17,7,18,25,47,46,71,22,60,60,50,59,129,132,135,137,131,125,491,476,431,415,1260,1120,1750,1468,1709,1580,1612,1574,1814,1248,29973,10784,5385,1883,2204,1613,29981,29982,29986,29987,29987,29988,29988,29989,29990,29991,29992,29992,29992,29992,29996,29997,29997,29997,29998,29999,29999]} 1. e4 {[%emt 0:00:18]} e5 {[%emt 0:00:21]} 2. Nf3 {[%emt 0:00:08]} Nc6 {[%emt 0:00:06]} 3. Bb5 {[%emt 0:00:23]} a6 {[%emt 0:00:10]} 4. Bxc6 {[%emt 0:00:44]} dxc6 {[%emt 0:00:26]} 5. d4 {[%emt 0:00:07]} exd4 {[%emt 0:00:45]} 6. Qxd4 {[%emt 0:00:07]} Qxd4 {[%emt 0:01:15]} 7. Nxd4 {[%emt 0:00:07]} Bd6 {[%emt 0:03:31]} 8. Nc3 {[%emt 0:00:16]} Ne7 {[%emt 0:01:27][%cal Bg8e7,Be7d5,Bd5f4,Bf4g2,Bg2e3][%mdl 32]} 9. Be3 {[%emt 0:02:41][%cal Bc1e3,Be3f2,Bf2g3,Bg3d6][%mdl 32]} f5 {[%emt 0:02:31]} 10. O-O-O {[%emt 0:02:36]} O-O {[%emt 0:02:36]} (10... f4 $5 11. Bd2 $8 O-O $11) 11. f3 {[%emt 0:09:18] The position is equal.} fxe4 {[%emt 0:12:59]} 12. Nxe4 {[%emt 0:00:38]} Nd5 {[%emt 0:00:31]} 13. Bf2 {[%emt 0:06:01]} Nf4 {[%emt 0:21:02]} 14. Bg3 {[%emt 0:09:13]} Nxg2 {[%emt 0:07:01]} 15. Nxd6 {[%emt 0:07:12]} cxd6 {[%emt 0:00:08]} 16. Bxd6 {[%emt 0:00:12]} Re8 {[%emt 0:04:15]} 17. Rhg1 {[%emt 0:04:36]} Ne3 {[%emt 0:01:04]} 18. Rde1 {[%emt 0:02:04] Strongly threatening Bf4.} Bd7 {[%emt 0:01:53] Black is weak on the dark squares} 19. Nb3 {[%emt 0:05:53]} b6 {[%emt 0:13:00]} 20. Bf4 {[%emt 0:06:05]} Nd5 {[%emt 0:03:29]} 21. Be5 {[%emt 0:03:18]} Re7 {[%emt 0:00:13]} 22. Bd6 {[%emt 0:01:22]} Rxe1+ {[%emt 0:09:40]} 23. Rxe1 {[%emt 0:00:25]} Re8 {[%emt 0:00:27]} 24. Rxe8+ {[%emt 0:04:25]} Bxe8 $11 {[%emt 0:00:02][%mdl 4096] Endgame. KBN-KBN} 25. Kd2 {[%emt 0:00:07]} Kf7 {[%emt 0:05:14]} 26. c4 {[%emt 0:00:52]} Nf6 {[%emt 0:00:42]} 27. Bc7 {[%emt 0:03:40]} b5 {[%emt 0:00:47]} 28. Kc3 {[%emt 0:04:50]} ({Better is} 28. Nc5 $16) 28... bxc4 {[%emt 0:00:08]} 29. Kxc4 {[%emt 0:00:10]} Ke7 {[%emt 0:00:33]} 30. Kc5 {[%emt 0:02:55]} Kd7 {[%emt 0:01:26] [#]} (30... Nd7+ $14 31. Kxc6 Ne5+ 32. Kb6 Nd3) 31. Be5 $1 $16 {[%emt 0:00:33]} Bf7 {[%emt 0:01:50]} 32. Bxf6 {[%emt 0:07:16]} gxf6 {[%emt 0:02:01] [#] KB-KN} 33. Kb6 $1 {[%emt 0:02:46] Hoping for Nc5+.} Bc4 $2 {[%emt 0:01:29][%mdl 8192] This costs Black the game.} (33... f5 $16 {is more resistant.}) 34. Nc5+ $18 {[%emt 0:01:57]} Kd6 {[%emt 0:00:45]} 35. a4 {[%emt 0:00:16]} (35. Nxa6 Bxa2 36. f4 Bc4 $11) (35. Nb7+ Ke5 $11) 35... Ke5 {[%emt 0:02:49]} (35... a5 $142 36. Nb7+ Kd5 37. Nxa5 (37. Kxa5 Be2 $16) 37... Ba2) 36. Nxa6 {[%emt 0:05:21]} ({And not} 36. Kxc6 Kf4 $11) 36... Kf4 {[%emt 0:01:09]} 37. Nb4 {[%emt 0:00:10]} Kxf3 {[%emt 0:00:34]} 38. Nxc6 {[%emt 0:00:19]} Kg2 {[%emt 0:00:37]} 39. Kc5 {[%emt 0:00:20]} Bf1 {[%emt 0:00:31]} 40. b4 {[%emt 0:00:49][%cal Bb2b4,Bb4b5][%mdl 32]} Kxh2 {[%emt 0:00:14]} 41. b5 {[%emt 0:00:28] White wants to mate with b6.} f5 {[%emt 0:00:30]} 42. a5 {[%emt 0:01:35]} (42. b6 $142 Ba6 43. Nb4) 42... f4 {[%emt 0:00:10]} 43. Ne5 {[%emt 0:04:02] aiming for a6.} ({Less strong is} 43. a6 f3 $16) 43... Bg2 {[%emt 0:01:00]} 44. a6 {[%emt 0:00:28] White mates.} f3 {[%emt 0:00:30] [#]} 45. Nxf3+ $1 {[%emt 0:00:27][%mdl 512]} Bxf3 {[%emt 0:00:02] KB-KPP} (45... Kh3 46. Ne1) 46. b6 {[%emt 0:00:07]} h5 {[%emt 0:00:41][%cal Bh7h5,Bh5h4,Bh4h3,Bh3h2][%mdl 32]} 47. b7 {[%emt 0:00:36]} Bxb7 {[%emt 0:00:05]} 48. axb7 {[%emt 0:00:03] KP-KP} h4 {[%emt 0:00:38]} 49. b8=Q+ {[%emt 0:06:44]} ({Inferior is} 49. b8=B+ Kg2 $11) 49... Kg2 {[%emt 0:00:06]} 50. Qg8+ {[%emt 0:00:00]} Kh2 {[%emt 0:00:36]} 51. Kd4 {[%emt 0:00:00]} h3 {[%emt 0:00:10]} 52. Ke3 {[%emt 0:00:00]} Kh1 {[%emt 0:00:06]} 53. Kf2 {[%emt 0:00:00][%csl Gf2][%cal Rg8g1]} h2 {[%emt 0:00:06]} 54. Qg2# {[%emt 0:00:00] Weighted Error Value: White=0.04 (flawless) /Black=0.48.  Loses game:     	---       	Black=1      Mistake:       	White=1     	Black=2      Inaccurate:     	---       	Black=2      OK:         	White=10    	Black=8      Best:        	White=2     	Black=1      Strong:       	White=2     	---} 1-0

[Event "VII Copa Marcel Duchamp 2024"]
[Site "Montevideo"]
[Date "2024.02.08"]
[Round "7.3"]
[White "Roselli Mailhe, Bernardo"]
[Black "Garcia Palermo, Carlos Horacio"]
[Result "0-1"]
[ECO "A61"]
[WhiteElo "2364"]
[BlackElo "2403"]
[Annotator "TA"]
[PlyCount "114"]
[EventDate "2024.02.05"]
[EventType "swiss"]
[EventCountry "URU"]
[SourceTitle "playchess.com"]
[Source "ChessBase"]
[SourceQuality "1"]
[TimeControl "5400+30"]

{[%evp 24,114,55,58,53,52,47,29,20,22,28,-14,-27,-108,-87,-134,-127,-95,-31,-19,-16,-19,0,0,33,37,31,0,0,0,0,0,0,-8,-8,-17,-10,-11,-11,-16,-16,-14,0,-8,-6,-6,-5,-8,-8,-6,-5,-5,-7,-8,-8,-14,-16,-16,-16,-20,-8,-8,-8,-8,-8,-12,-12,-13,-12,-37,-40,-63,-62,-70,-70,-68,-69,-72,-67,-67,-24,-24,-8,-8,-8,-8,-8,-8,-8,-29978,-29979,-29979,-29980]} 1. d4 {[%emt 0:00:05] Marin,Mihail} c5 {[%emt 0:03:18]} 2. d5 {[%emt 0:00:05]} Nf6 {[%emt 0:00:10]} 3. c4 {[%emt 0:02:05]} e6 {[%emt 0:00:09]} 4. Nc3 {[%emt 0:00:06]} exd5 5. cxd5 {[%emt 0:00:08]} d6 {[%emt 0:00:12]} 6. Nf3 {[%emt 0:00:38]} g6 {[%emt 0:00:21]} 7. Bf4 {[%emt 0:00:09]} a6 {[%emt 0:00:21]} 8. a4 {[%emt 0:00:05]} Bg7 {[%emt 0:00:24]} 9. e3 {[%emt 0:00:19]} O-O {[%emt 0:02:32]} 10. h3 {[%emt 0:00:17] The main line 10.h3 scores better than 10.Be2.} Re8 {[%emt 0:02:50] A61: Modern Benoni: Nf3 without early e4.} 11. Be2 {[%emt 0:00:45]} Nbd7 {[%emt 0:00:46]} 12. Nd2 {[%emt 0:05:45]} Ne5 {[%emt 0:08:36]} 13. O-O {[%emt 0:04:21]} Nfd7 {[%emt 0:01:14]} 14. Bg3 {[%emt 0:10:12]} f5 {[%emt 0:04:48]} 15. Qb3 $146 {[%emt 0:05:30]} ({Predecessor:} 15. Qc2 Kh8 16. b3 Rb8 17. Nc4 Qf6 18. Rac1 b6 19. Qd2 Qe7 20. Rfe1 Nxc4 21. bxc4 {1-0 Jakovenko,D (2726)-Papaioannou,I (2622) Olympiad-39 Khanty-Mansiysk 2010 (6.1)}) 15... b6 {[%emt 0:09:53]} 16. Rae1 {[%emt 0:08:05]} Rb8 {[%emt 0:03:36]} 17. f4 {[%emt 0:07:05]} c4 {[%emt 0:06:07]} 18. Nxc4 {[%emt 0:03:01]} (18. Bxc4 $2 {loses.} Nc5 19. Qa2 Nxc4 20. Nxc4 b5 21. axb5 axb5 $19) (18. Qa3 $11 Nd3 19. Bxd3 cxd3 20. e4) 18... Nc5 $17 {[%emt 0:00:13]} 19. Qc2 {[%emt 0:01:11]} (19. Qa3 $142 Nxc4 20. Bxc4) 19... Nxc4 $17 {[%emt 0:00:13]} 20. Bxc4 {[%emt 0:00:04] [#]} b5 {[%emt 0:09:56]} ({Black should try} 20... Bd7 $1 $17 {Threatens to win with ...b5.} 21. Be2 (21. Bd3 Qc8) 21... b5 (21... Rxe3 22. Bf2 $11) 22. axb5 axb5) 21. axb5 $15 {[%emt 0:00:19]} axb5 {[%emt 0:00:06]} 22. Nxb5 {[%emt 0:04:54]} Ba6 {[%emt 0:00:31]} 23. Nd4 {[%emt 0:05:50]} Rxb2 {[%emt 0:07:35]} 24. Qxb2 {[%emt 0:03:03]} Bxc4 {[%emt 0:00:07]} 25. Bf2 {[%emt 0:01:51]} Bxf1 {[%emt 0:18:05]} 26. Rxf1 {[%emt 0:00:08]} Qa8 {[%emt 0:00:26]} 27. Ra1 {[%emt 0:05:53]} Qxd5 {[%emt 0:00:22]} 28. Qa2 {[%emt 0:00:05]} Qxa2 {[%emt 0:00:36]} 29. Rxa2 {[%emt 0:00:03]} Bxd4 {[%emt 0:00:59]} 30. exd4 {[%emt 0:00:05]} Ne4 {[%emt 0:00:24]} 31. d5 {[%emt 0:11:56]} Rb8 {[%emt 0:00:25]} 32. Bd4 {[%emt 0:00:17]} Rb1+ {[%emt 0:00:16]} 33. Kh2 {[%emt 0:00:07]} Rd1 {[%emt 0:00:16]} 34. Ra8+ {[%emt 0:01:13]} Kf7 {[%emt 0:00:05]} 35. Ra7+ {[%emt 0:00:03]} Ke8 {[%emt 0:00:05]} 36. Ra8+ {[%emt 0:00:05]} Kd7 {[%emt 0:00:09]} 37. Ra7+ {[%emt 0:00:34]} Kc8 {[%emt 0:00:06]} 38. Bg1 {[%emt 0:02:00]} Nf6 {[%emt 0:02:27]} 39. Rf7 {[%emt 0:04:11]} Nxd5 {[%emt 0:00:08]} 40. Rxh7 {[%emt 0:00:03]} Nxf4 {[%emt 0:00:12]} 41. Be3 {[%emt 0:00:05]} Nd5 {[%emt 0:00:38]} 42. Bg5 {[%emt 0:00:14]} Re1 {[%emt 0:04:21]} 43. Rg7 {[%emt 0:00:44]} Re6 {[%emt 0:00:12]} 44. Kg3 {[%emt 0:01:55]} Nc3 {[%emt 0:00:06]} 45. Kf3 {[%emt 0:00:07]} d5 {[%emt 0:00:51]} 46. Be3 {[%emt 0:06:00]} Nb5 {[%emt 0:00:06]} 47. h4 {[%emt 0:00:48]} d4 {[%emt 0:00:18]} 48. Bf4 {[%emt 0:03:25]} d3 {[%emt 0:00:24]} 49. Be3 {[%emt 0:00:05]} Nd4+ {[%emt 0:06:46]} 50. Kf2 $1 {[%emt 0:00:05]} (50. Bxd4 d2 51. Rg8+ Kd7 52. Rg7+ Kc6 53. Kg3 d1=Q (53... d1=R $2 54. Ba7 $19) 54. Bf2 Qe2 55. Rf7 Qg4+ 56. Kh2 Re2 57. Rf6+ Kd5) 50... Nc2 {[%emt 0:06:48]} 51. Bg5 {[%emt 0:01:02]} Re2+ {[%emt 0:01:13]} 52. Kg3 {[%emt 0:01:10]} Ne3 {[%emt 0:01:30]} 53. Kf3 {[%emt 0:00:07]} Nxg2 {[%emt 0:00:57]} 54. Rxg6 {[%emt 0:00:13]} Ne1+ {[%emt 0:00:35]} 55. Kg3 {[%emt 0:00:10]} Rg2+ {[%emt 0:00:28]} 56. Kh3 $2 {[%emt 0:00:06][%mdl 8192]} (56. Kf4 $11) 56... f4 {[%emt 0:00:47]} 57. Rg8+ {[%emt 0:04:01]} Kb7 {[%emt 0:00:33]} 0-1

[Event "VII Copa Marcel Duchamp 2024"]
[Site "Montevideo"]
[Date "2024.02.09"]
[Round "8.1"]
[White "Garcia Palermo, Carlos Horacio"]
[Black "Meier, Georg"]
[Result "1/2-1/2"]
[ECO "A10"]
[WhiteElo "2403"]
[BlackElo "2620"]
[Annotator "TA"]
[PlyCount "144"]
[EventDate "2024.02.05"]
[EventType "swiss"]
[EventCountry "URU"]
[SourceTitle "playchess.com"]
[Source "ChessBase"]
[SourceQuality "1"]
[TimeControl "5400+30"]

{[%evp 47,144,104,100,34,26,36,81,6,6,6,27,20,29,28,71,55,54,57,80,0,0,0,0,0,30,0,0,0,0,0,0,0,0,0,0,-8,-8,-8,-8,-8,-8,-8,-8,-8,-8,-8,-8,-8,-8,-8,-8,-8,0,0,0,-62,-62,-62,-62,-143,-143,-143,-143,-189,-189,-189,-189,-189,-189,-189,-189,-189,0,0,0,0,0,0,0,0,0,0,0,0,0,0,0,0,0,0,0,0,0,0,0,0,0,-8,0]} 1. c4 {[%emt 0:02:23]} b6 {[%emt 0:00:32]} 2. Nc3 {[%emt 0:00:52]} Bb7 {[%emt 0:00:10]} 3. e4 {[%emt 0:00:11]} e5 {[%emt 0:00:15]} 4. g3 {[%emt 0:00:19]} Nc6 {[%emt 0:00:41]} 5. Bg2 {[%emt 0:00:11]} Bc5 {[%emt 0:00:11]} 6. Nf3 {[%emt 0:00:56]} Nge7 {[%emt 0:04:49]} 7. d3 {[%emt 0:01:26]} O-O {[%emt 0:01:00]} 8. O-O {[%emt 0:00:30]} d6 {[%emt 0:00:18]} 9. a3 {[%emt 0:00:45]} a5 {[%emt 0:00:06]} 10. Rb1 {[%emt 0:01:01]} Qd7 {[%emt 0:03:30]} 11. Nh4 {[%emt 0:03:48]} Kh8 {[%emt 0:09:07]} 12. Kh1 {[%emt 0:05:36]} Bd4 {[%emt 0:01:03]} 13. Nb5 {[%emt 0:20:55]} a4 {[%emt 0:02:41]} 14. Qh5 {[%emt 0:05:14]} Bc5 {[%emt 1:13:07]} 15. Bh3 {[%emt 0:02:47]} Qd8 {[%emt 0:00:00]} 16. f4 {[%emt 0:06:05]} g6 {[%emt 0:00:00]} 17. Qg5 {[%emt 0:01:14]} f6 {[%emt 0:00:00]} 18. Qh6 {[%emt 0:00:09]} f5 {[%emt 0:00:00]} 19. Bg2 {[%emt 0:04:43]} Rf7 {[%emt 0:00:00]} 20. fxe5 {[%emt 0:20:51]} dxe5 {[%emt 0:00:00]} 21. Bg5 {[%emt 0:00:44]} Qc8 {[%emt 0:00:00]} 22. exf5 {[%emt 0:01:55]} Nxf5 {[%emt 0:00:00]} 23. Nxf5 {[%emt 0:00:34]} Bf8 {[%emt 0:00:00]} 24. Qh4 $2 {[%emt 0:02:23]} (24. Nfd6 $18 {has better winning chances.} Rxf1+ 25. Rxf1 Bxh6 26. Bf6+ (26. Nxc8 Bxg5 27. Nxb6 cxb6 $14) 26... Bg7) 24... gxf5 $16 {[%emt 0:00:00]} 25. Bf6+ {[%emt 0:06:43]} (25. Bd5 $16 Na7 26. Bf6+ Bg7 27. Bxg7+ Kxg7 28. Nxa7 Bxd5+ 29. cxd5) 25... Bg7 $14 {[%emt 0:00:00]} 26. Bxg7+ {[%emt 0:00:08]} Kxg7 {[%emt 0:00:00]} 27. d4 {[%emt 0:00:33]} (27. Rbe1 $16) 27... Nxd4 $11 {[%emt 0:00:00]} 28. Nxd4 {[%emt 0:00:09]} exd4 {[%emt 0:00:00]} (28... Bxg2+ {simplifies} 29. Kxg2 exd4 30. Qxd4+ Kg6) 29. Qxd4+ {[%emt 0:00:35]} Kg6 {[%emt 0:00:00]} 30. Rbe1 {[%emt 0:00:46]} c5 {[%emt 0:00:00]} 31. Qd3 {[%emt 0:02:16]} Bxg2+ {[%emt 0:00:40]} 32. Kxg2 {[%emt 0:00:05]} Qc6+ {[%emt 0:00:12] [#]} 33. Rf3 {[%emt 0:05:52]} (33. Qd5 $1 $16 {[%cal Rd5c6]} Qxd5+ 34. cxd5) 33... Re8 $11 {[%emt 0:01:00]} 34. Rxe8 {[%emt 0:00:10]} Qxe8 {[%emt 0:00:02]} 35. Re3 {[%emt 0:00:40]} Qc6+ {[%emt 0:02:55]} 36. Kh3 {[%emt 0:00:06]} Qd7 {[%emt 0:02:45]} 37. Qxd7 {[%emt 0:03:09]} Rxd7 {[%emt 0:00:02]} 38. Re6+ {[%emt 0:00:11]} Kg5 {[%emt 0:00:12]} 39. Rxb6 {[%emt 0:00:09]} Rd4 {[%emt 0:00:08]} 40. Kg2 {[%emt 0:00:16]} Rd2+ {[%emt 0:00:47]} 41. Kf3 {[%emt 0:01:03]} Rxh2 {[%emt 0:00:16]} 42. b4 {[%emt 0:02:06]} axb3 {[%emt 0:01:25]} 43. Rxb3 {[%emt 0:00:06]} Ra2 {[%emt 0:01:56]} 44. Rd3 {[%emt 0:00:21]} h5 {[%emt 0:00:40]} 45. Re3 {[%emt 0:01:12]} Rc2 {[%emt 0:00:39]} 46. a4 {[%emt 0:00:30]} Ra2 {[%emt 0:00:28]} 47. Re5 {[%emt 0:00:09]} Ra3+ {[%emt 0:00:17]} 48. Kf2 {[%emt 0:00:22]} Kg4 {[%emt 0:01:26]} 49. Rxc5 {[%emt 0:00:15]} Rxa4 {[%emt 0:00:14]} 50. Rc6 {[%emt 0:01:24]} Ra2+ {[%emt 0:00:22]} 51. Kg1 {[%emt 0:00:30]} (51. Ke3 $11) 51... Kxg3 $15 {[%emt 0:00:47]} 52. Rg6+ {[%emt 0:00:09]} Kf4 {[%emt 0:00:23]} 53. c5 {[%emt 0:00:18]} (53. Rc6 $15) 53... Rc2 $17 {[%emt 0:00:16]} 54. c6 {[%emt 0:00:04]} h4 {[%emt 0:00:08]} 55. Rf6 {[%emt 0:01:25]} (55. Rg8 $17 {was necessary.}) 55... Kg4 {[%emt 0:00:23]} 56. Rg6+ {[%emt 0:00:30]} Kf3 {[%emt 0:00:13]} 57. Rh6 {[%emt 0:00:23]} f4 {[%emt 0:00:12]} 58. Rf6 {[%emt 0:00:16]} Rc4 {[%emt 0:02:06]} 59. Kh2 {[%emt 0:00:18]} Ke3 $2 {[%emt 0:00:51]} (59... Kg4 $19 {...f3 would now be deadly.} 60. Rg6+ Kf5) 60. Kg2 $1 $11 {[%emt 0:00:41]} Rc2+ {[%emt 0:00:39]} 61. Kh3 {[%emt 0:00:19]} f3 {[%emt 0:00:12]} 62. Kxh4 {[%emt 0:00:48]} Rh2+ {[%emt 0:00:09]} (62... f2 $5 63. Kg3 $8 f1=Q 64. Rxf1 Rxc6 $11) 63. Kg3 {[%emt 0:00:11]} Rg2+ {[%emt 0:00:05]} 64. Kh3 {[%emt 0:00:05]} Rg7 {[%emt 0:00:13]} 65. c7 {[%emt 0:01:37]} Rxc7 {[%emt 0:00:09]} 66. Ra6 {[%emt 0:00:02]} Rc2 {[%emt 0:02:11]} 67. Kg3 {[%emt 0:00:22]} Rg2+ {[%emt 0:00:32]} 68. Kh3 {[%emt 0:00:07]} Rg5 {[%emt 0:00:32]} 69. Ra3+ {[%emt 0:00:13]} Kf2 {[%emt 0:00:24]} 70. Ra2+ {[%emt 0:00:07]} Kg1 {[%emt 0:00:23]} 71. Ra1+ {[%emt 0:00:07]} Kf2 {[%emt 0:00:06]} 72. Ra2+ {[%emt 0:00:03]} Kg1 {[%emt 0:01:40]} 1/2-1/2

[Event "VII Copa Marcel Duchamp 2024"]
[Site "Montevideo"]
[Date "2024.02.09"]
[Round "8.2"]
[White "Tristan, Leonardo"]
[Black "Hoffman, Alejandro"]
[Result "1-0"]
[ECO "A45"]
[WhiteElo "2515"]
[BlackElo "2358"]
[Annotator "RC"]
[PlyCount "163"]
[EventDate "2024.02.05"]
[EventType "swiss"]
[EventCountry "URU"]
[SourceTitle "playchess.com"]
[Source "ChessBase"]
[SourceQuality "1"]
[TimeControl "5400+30"]

1. d4 {[%emt 0:02:09]} Nf6 {[%emt 0:00:46]} 2. Bg5 {[%emt 0:00:36]} Ne4 {[%emt 0:00:44]} 3. Bf4 {[%emt 0:00:07]} c5 {[%emt 0:01:22]} 4. f3 {[%emt 0:00:14]} Qa5+ {[%emt 0:00:55]} 5. c3 {[%emt 0:00:08]} Nf6 {[%emt 0:00:39]} 6. d5 {[%emt 0:00:15]} Qb6 {[%emt 0:00:42]} 7. Bc1 {[%emt 0:00:47]} e6 {[%emt 0:01:27]} 8. e4 {[%emt 0:01:10]} exd5 {[%emt 0:00:47]} 9. exd5 {[%emt 0:00:24]} d6 {[%emt 0:01:48]} 10. c4 {[%emt 0:08:19]} Be7 {[%emt 0:01:07]} 11. Nc3 {[%emt 0:03:25]} O-O {[%emt 0:02:50]} 12. Bd3 {[%emt 0:06:27]} Re8 {[%emt 0:14:58]} 13. Nge2 {[%emt 0:06:00]} Bf8 {[%emt 0:01:58]} 14. O-O {[%emt 0:05:03]} g6 {[%emt 0:05:53]} 15. h3 {[%emt 0:05:28]} Bg7 {[%emt 0:08:03]} 16. f4 {[%emt 0:03:00]} Na6 {[%emt 0:07:45]} 17. a3 {[%emt 0:03:03]} Bd7 {[%emt 0:07:37]} 18. f5 {[%emt 0:10:25]} Re5 {[%emt 0:02:24]} 19. Bf4 {[%emt 0:10:10]} Rae8 {[%emt 0:07:34]} 20. Bxe5 {[%emt 0:09:04]} Rxe5 {[%emt 0:00:07]} 21. Qd2 {[%emt 0:00:17]} Nc7 {[%emt 0:05:22]} 22. Kh1 {[%emt 0:02:17]} a6 {[%emt 0:00:46]} 23. Rae1 {[%emt 0:02:20]} Qa7 {[%emt 0:01:38]} 24. Ng3 {[%emt 0:06:12]} Rxe1 {[%emt 0:03:49]} 25. Qxe1 {[%emt 0:00:04]} Qb8 {[%emt 0:02:09]} 26. fxg6 {[%emt 0:03:26]} hxg6 {[%emt 0:00:18]} 27. Nge4 {[%emt 0:00:37]} Nce8 {[%emt 0:04:14]} 28. Ng5 {[%emt 0:03:39]} Qd8 {[%emt 0:03:19]} 29. g4 {[%emt 0:03:01]} b5 {[%emt 0:01:46]} 30. Nxf7 {[%emt 0:05:08]} Kxf7 {[%emt 0:00:09]} 31. g5 {[%emt 0:00:04]} bxc4 {[%emt 0:00:51]} 32. Bc2 {[%emt 0:00:11]} Bxh3 {[%emt 0:01:20]} 33. gxf6 {[%emt 0:01:49]} Nxf6 {[%emt 0:03:16]} 34. Ne4 {[%emt 0:00:38]} Qh8 {[%emt 0:05:19]} 35. Ng5+ {[%emt 0:00:42]} Kg8 {[%emt 0:00:48]} 36. Rf4 {[%emt 0:00:51]} Bg4+ {[%emt 0:01:27]} 37. Kg1 {[%emt 0:00:53]} Qh5 {[%emt 0:01:59]} 38. Rxf6 {[%emt 0:00:06]} Be2 {[%emt 0:00:53]} 39. Nf3 {[%emt 0:00:44]} Bxf6 {[%emt 0:00:36]} 40. Qxe2 {[%emt 0:00:04]} Bxb2 {[%emt 0:00:10]} 41. Qe6+ {[%emt 0:00:57]} Kg7 {[%emt 0:00:29]} 42. Qe7+ {[%emt 0:00:14]} Kg8 {[%emt 0:00:25]} 43. Qd8+ {[%emt 0:00:47]} Kg7 {[%emt 0:00:08]} 44. Qe7+ {[%emt 0:00:28]} Kg8 {[%emt 0:00:05]} 45. Qe4 {[%emt 0:00:22]} Kg7 {[%emt 0:00:09]} 46. Kf2 {[%emt 0:00:41]} Bf6 {[%emt 0:02:02]} 47. Qe6 {[%emt 0:00:05]} Bd4+ {[%emt 0:00:23]} 48. Kg2 {[%emt 0:00:14]} Be5 {[%emt 0:00:36]} 49. Qe7+ {[%emt 0:01:17]} Kh6 {[%emt 0:00:07]} 50. Qf8+ {[%emt 0:00:11]} Kh7 {[%emt 0:00:22]} 51. Qf7+ {[%emt 0:00:22]} Kh6 {[%emt 0:01:00]} 52. Qe6 {[%emt 0:00:34]} Bf4 {[%emt 0:00:16]} 53. Be4 {[%emt 0:00:56]} c3 {[%emt 0:00:23]} 54. Qc8 {[%emt 0:00:25]} Be5 {[%emt 0:00:32]} 55. Qf8+ {[%emt 0:00:19]} Kh7 {[%emt 0:00:03]} 56. Qe7+ {[%emt 0:00:15]} Kh6 {[%emt 0:00:07]} 57. Qh4 {[%emt 0:00:30]} Qxh4 {[%emt 0:00:50]} 58. Nxh4 {[%emt 0:00:04]} g5 {[%emt 0:00:16]} 59. Nf5+ {[%emt 0:01:00]} Kh5 {[%emt 0:00:11]} 60. Ne3 {[%emt 0:00:10]} g4 {[%emt 0:00:18]} 61. Bd3 {[%emt 0:00:44]} Bf4 {[%emt 0:00:55]} 62. Nc2 {[%emt 0:01:00]} a5 {[%emt 0:00:07]} 63. a4 {[%emt 0:00:07]} Kg5 {[%emt 0:00:10]} 64. Na3 {[%emt 0:00:10]} Bd2 {[%emt 0:02:07]} 65. Nc4 {[%emt 0:00:23]} Kf4 {[%emt 0:00:02]} 66. Bc2 {[%emt 0:00:52]} g3 {[%emt 0:00:14]} 67. Nxd6 {[%emt 0:01:00]} Ke5 {[%emt 0:00:18]} 68. Nc4+ {[%emt 0:00:30]} Kxd5 {[%emt 0:00:02]} 69. Nxa5 {[%emt 0:00:16]} Bf4 {[%emt 0:00:43]} 70. Kf3 {[%emt 0:00:10]} c4 {[%emt 0:00:29]} 71. Nb7 {[%emt 0:00:48]} Bb8 {[%emt 0:00:22]} 72. Nd8 {[%emt 0:00:41]} Kc5 {[%emt 0:00:30]} 73. Ne6+ {[%emt 0:00:37]} Kb4 {[%emt 0:00:07]} 74. Nd4 {[%emt 0:00:20]} Ka3 {[%emt 0:00:07]} 75. a5 {[%emt 0:00:17]} Kb2 {[%emt 0:01:30]} 76. Be4 {[%emt 0:00:26]} Ba7 {[%emt 0:00:13]} 77. Nc2 {[%emt 0:00:26]} Bb8 {[%emt 0:02:08]} 78. a6 {[%emt 0:00:09]} Ba7 {[%emt 0:00:33]} 79. Kxg3 {[%emt 0:00:07]} Kc1 {[%emt 0:00:27]} 80. Kf4 {[%emt 0:00:15]} Kd2 {[%emt 0:00:06]} 81. Ke5 {[%emt 0:00:08]} Bb6 {[%emt 0:00:11]} 82. Kd5 {[%emt 0:00:06]} 1-0